[Event "Early-Titled-Tuesday-Blitz-September-26-2023"]
[Site "Chess.com"]
[Date "2023.09.26"]
[Round "3"]
[White "Good_Knight_Kiss"]
[Black "DarZay"]
[Result "1-0"]
[WhiteElo "2395"]
[BlackElo "2213"]
[TimeControl "180+1"]
[EndTime "8:27:43 PDT"]
[Termination "Good_Knight_Kiss won by checkmate"]

1. e4 {[%clk 0:03:00.9]} 1... c5 {[%clk 0:02:57.1]} 2. Nf3 {[%clk 0:02:59.7]}
2... Nc6 {[%clk 0:02:57]} 3. d4 {[%clk 0:02:59.8]} 3... cxd4 {[%clk 0:02:56.9]}
4. Nxd4 {[%clk 0:03:00.7]} 4... Nf6 {[%clk 0:02:52.2]} 5. Nc3 {[%clk 0:03:00.8]}
5... d6 {[%clk 0:02:52.5]} 6. Nd5 {[%clk 0:03:00.6]} 6... Nxd4 {[%clk
0:02:34.9]} 7. Qxd4 {[%clk 0:02:51.7]} 7... Nxd5 {[%clk 0:02:31.7]} 8. exd5
{[%clk 0:02:50.9]} 8... e5 {[%clk 0:02:28.4]} 9. dxe6 {[%clk 0:02:44]} 9... fxe6
{[%clk 0:02:24.8]} 10. Bb5+ {[%clk 0:02:27.6]} 10... Bd7 {[%clk 0:02:23.4]} 11.
Bxd7+ {[%clk 0:02:27.4]} 11... Qxd7 {[%clk 0:02:23.9]} 12. O-O {[%clk
0:02:27.6]} 12... O-O-O {[%clk 0:02:23.6]} 13. Qxa7 {[%clk 0:02:23.2]} 13... e5
{[%clk 0:02:19.5]} 14. Be3 {[%clk 0:02:14.4]} 14... Qc6 {[%clk 0:02:16.9]} 15.
c4 {[%clk 0:01:52]} 15... Be7 {[%clk 0:02:07.7]} 16. b4 {[%clk 0:01:45.1]} 16...
Kd7 {[%clk 0:02:00.1]} 17. b5 {[%clk 0:01:32.9]} 17... Qc7 {[%clk 0:01:52.4]}
18. Bb6 {[%clk 0:01:25.9]} 18... Ra8 {[%clk 0:01:48]} 19. Qxa8 {[%clk
0:01:21.7]} 19... Rxa8 {[%clk 0:01:47.2]} 20. Bxc7 {[%clk 0:01:21.6]} 20... Kxc7
{[%clk 0:01:47.6]} 21. a4 {[%clk 0:01:20.5]} 21... b6 {[%clk 0:01:47.1]} 22. Ra2
{[%clk 0:01:16.3]} 22... Bf6 {[%clk 0:01:40.4]} 23. f3 {[%clk 0:01:14.8]} 23...
Kb7 {[%clk 0:01:37.6]} 24. Rc1 {[%clk 0:01:06.5]} 24... Rc8 {[%clk 0:01:32.8]}
25. a5 {[%clk 0:01:05]} 25... bxa5 {[%clk 0:01:32.1]} 26. Rxa5 {[%clk
0:01:05.2]} 26... Rc5 {[%clk 0:01:30.2]} 27. Rca1 {[%clk 0:00:51.9]} 27... Rxc4
{[%clk 0:01:22.4]} 28. Ra7+ {[%clk 0:00:51.6]} 28... Kb6 {[%clk 0:01:22.5]} 29.
Rd7 {[%clk 0:00:49.4]} 29... e4 {[%clk 0:01:15]} 30. Rxd6+ {[%clk 0:00:33.6]}
30... Kc7 {[%clk 0:01:13.7]} 31. Rad1 {[%clk 0:00:30.9]} 31... e3 {[%clk
0:01:10.2]} 32. R6d3 {[%clk 0:00:25.3]} 32... e2 {[%clk 0:01:08.2]} 33. Re1
{[%clk 0:00:24.6]} 33... Rc2 {[%clk 0:01:06.2]} 34. Kf2 {[%clk 0:00:24.1]} 34...
Rb2 {[%clk 0:00:59.8]} 35. Rxe2 {[%clk 0:00:22.6]} 35... Rxb5 {[%clk 0:00:59.6]}
36. Rc2+ {[%clk 0:00:22.4]} 36... Kb6 {[%clk 0:00:59.2]} 37. f4 {[%clk
0:00:21.9]} 37... Rb4 {[%clk 0:00:58.6]} 38. g3 {[%clk 0:00:21.8]} 38... Bd4+
{[%clk 0:00:58.3]} 39. Kf3 {[%clk 0:00:21.4]} 39... h6 {[%clk 0:00:58.3]} 40.
Rcd2 {[%clk 0:00:18.7]} 40... Bf6 {[%clk 0:00:56.7]} 41. Rc2 {[%clk 0:00:18.7]}
41... Rb1 {[%clk 0:00:56.1]} 42. g4 {[%clk 0:00:16.9]} 42... Rf1+ {[%clk
0:00:55.3]} 43. Ke4 {[%clk 0:00:15.7]} 43... Rg1 {[%clk 0:00:54.8]} 44. Rb3+
{[%clk 0:00:15]} 44... Ka5 {[%clk 0:00:51]} 45. Ra2# {[%clk 0:00:15.2]} 1-0

[Event "Early-Titled-Tuesday-Blitz-September-26-2023"]
[Site "Chess.com"]
[Date "2023.09.26"]
[Round "3"]
[White "chito89"]
[Black "Keeper0416"]
[Result "1/2-1/2"]
[WhiteElo "2790"]
[BlackElo "2565"]
[TimeControl "180+1"]
[EndTime "8:27:44 PDT"]
[Termination "Game drawn by agreement"]

1. d4 {[%clk 0:03:00]} 1... d5 {[%clk 0:02:58.8]} 2. c4 {[%clk 0:03:00.5]} 2...
c6 {[%clk 0:02:59.3]} 3. Nf3 {[%clk 0:02:59.1]} 3... Nf6 {[%clk 0:02:59.1]} 4.
g3 {[%clk 0:03:00]} 4... Bf5 {[%clk 0:02:54]} 5. Nc3 {[%clk 0:02:59.2]} 5... e6
{[%clk 0:02:47.3]} 6. Nh4 {[%clk 0:02:58.4]} 6... Be4 {[%clk 0:02:46.9]} 7. f3
{[%clk 0:02:54.5]} 7... Bg6 {[%clk 0:02:47.4]} 8. Qb3 {[%clk 0:02:45.8]} 8...
Qb6 {[%clk 0:02:47]} 9. c5 {[%clk 0:02:45.8]} 9... Qxb3 {[%clk 0:02:46.9]} 10.
axb3 {[%clk 0:02:46.7]} 10... Na6 {[%clk 0:02:46.2]} 11. Nxg6 {[%clk 0:02:45.5]}
11... hxg6 {[%clk 0:02:45]} 12. Ra4 {[%clk 0:02:42.5]} 12... Nc7 {[%clk
0:01:53]} 13. Bf4 {[%clk 0:02:39.4]} 13... Kd7 {[%clk 0:01:28.7]} 14. e4 {[%clk
0:02:38.3]} 14... Nh5 {[%clk 0:01:25.6]} 15. Bxc7 {[%clk 0:02:34.1]} 15... Kxc7
{[%clk 0:01:26.5]} 16. Kf2 {[%clk 0:02:29.1]} 16... a6 {[%clk 0:01:17.7]} 17. e5
{[%clk 0:02:25]} 17... g5 {[%clk 0:01:05.2]} 18. b4 {[%clk 0:02:15.4]} 18... Rb8
{[%clk 0:01:01.7]} 19. h4 {[%clk 0:02:11.4]} 19... gxh4 {[%clk 0:00:52.1]} 20.
Rxh4 {[%clk 0:02:12]} 20... Be7 {[%clk 0:00:52.6]} 21. Rh3 {[%clk 0:02:02]}
21... g6 {[%clk 0:00:52.3]} 22. Ra1 {[%clk 0:01:45.3]} 22... Ng7 {[%clk
0:00:49.3]} 23. Ne2 {[%clk 0:01:42]} 23... Rxh3 {[%clk 0:00:48.1]} 24. Bxh3
{[%clk 0:01:42.5]} 24... Rh8 {[%clk 0:00:48.5]} 25. Bg4 {[%clk 0:01:42]} 25...
Kd7 {[%clk 0:00:38.6]} 26. Kg2 {[%clk 0:01:38.7]} 26... Bg5 {[%clk 0:00:37.7]}
27. f4 {[%clk 0:01:29.4]} 27... Bd8 {[%clk 0:00:37.6]} 28. Ng1 {[%clk
0:01:23.9]} 28... Be7 {[%clk 0:00:37.5]} 29. Bh3 {[%clk 0:01:03]} 29... Ne8
{[%clk 0:00:37.7]} 30. Ne2 {[%clk 0:00:59.3]} 30... Nc7 {[%clk 0:00:37.9]} 31.
g4 {[%clk 0:00:58.5]} 31... Rg8 {[%clk 0:00:32.2]} 32. Rf1 {[%clk 0:00:58.3]}
32... Nb5 {[%clk 0:00:31.1]} 33. Kf3 {[%clk 0:00:57.7]} 33... Rh8 {[%clk
0:00:30.9]} 34. Kg3 {[%clk 0:00:54.7]} 34... Bh4+ {[%clk 0:00:22]} 35. Kg2
{[%clk 0:00:53.6]} 35... Be7 {[%clk 0:00:19.7]} 36. Rf3 {[%clk 0:00:52.5]} 36...
Rh7 {[%clk 0:00:16.7]} 37. f5 {[%clk 0:00:51.7]} 37... g5 {[%clk 0:00:16.3]} 38.
Rd3 {[%clk 0:00:38]} 1/2-1/2

[Event "Early-Titled-Tuesday-Blitz-September-26-2023"]
[Site "Chess.com"]
[Date "2023.09.26"]
[Round "3"]
[White "OparinGrigoriy"]
[Black "atigerman"]
[Result "0-1"]
[WhiteElo "2956"]
[BlackElo "2721"]
[TimeControl "180+1"]
[EndTime "8:27:50 PDT"]
[Termination "atigerman won by resignation"]

1. c4 {[%clk 0:03:00.9]} 1... Nf6 {[%clk 0:02:58.3]} 2. Nc3 {[%clk 0:03:01.4]}
2... c5 {[%clk 0:02:57.2]} 3. Nf3 {[%clk 0:03:01.6]} 3... Nc6 {[%clk 0:02:57.4]}
4. d4 {[%clk 0:03:02.3]} 4... cxd4 {[%clk 0:02:56.4]} 5. Nxd4 {[%clk 0:03:03.2]}
5... e6 {[%clk 0:02:53.8]} 6. e4 {[%clk 0:03:03.4]} 6... Bb4 {[%clk 0:02:43.4]}
7. Nxc6 {[%clk 0:03:03]} 7... bxc6 {[%clk 0:02:41.5]} 8. Bd3 {[%clk 0:03:03.5]}
8... O-O {[%clk 0:02:40.5]} 9. e5 {[%clk 0:02:59.9]} 9... Qa5 {[%clk 0:02:29.3]}
10. exf6 {[%clk 0:02:42]} 10... Bxc3+ {[%clk 0:02:29.2]} 11. bxc3 {[%clk
0:02:41.2]} 11... Qxc3+ {[%clk 0:02:29.3]} 12. Kf1 {[%clk 0:02:01]} 12... Qxa1
{[%clk 0:02:24.9]} 13. fxg7 {[%clk 0:02:01.6]} 13... Qxg7 {[%clk 0:02:21.8]} 14.
h4 {[%clk 0:02:01.3]} 14... f5 {[%clk 0:01:58.7]} 15. Rh3 {[%clk 0:02:01.4]}
15... f4 {[%clk 0:01:54.7]} 16. h5 {[%clk 0:01:32.8]} 16... d5 {[%clk 0:01:54]}
17. h6 {[%clk 0:01:32.1]} 17... Qg5 {[%clk 0:01:41.7]} 18. Rh5 {[%clk
0:01:28.6]} 18... Qf6 {[%clk 0:01:29.4]} 19. Qg4+ {[%clk 0:01:01.2]} 19... Kf7
{[%clk 0:01:17.8]} 20. Rg5 {[%clk 0:00:35]} 20... Qxh6 {[%clk 0:00:59.6]} 21.
Ba3 {[%clk 0:00:18.6]} 21... e5 {[%clk 0:00:47.4]} 22. Bf5 {[%clk 0:00:18.7]}
22... Rg8 {[%clk 0:00:32.1]} 23. Rxg8 {[%clk 0:00:04.4]} 23... Bxf5 {[%clk
0:00:31.2]} 24. Qg5 {[%clk 0:00:04.2]} 24... Qxg5 {[%clk 0:00:23]} 25. Rxg5
{[%clk 0:00:05.1]} 25... Kf6 {[%clk 0:00:21.3]} 26. Rh5 {[%clk 0:00:05.8]} 26...
dxc4 {[%clk 0:00:17.5]} 27. Ke2 {[%clk 0:00:04]} 27... Bg4+ {[%clk 0:00:16.7]}
0-1

[Event "Early-Titled-Tuesday-Blitz-September-26-2023"]
[Site "Chess.com"]
[Date "2023.09.26"]
[Round "3"]
[White "ljm509"]
[Black "subham777"]
[Result "0-1"]
[WhiteElo "2317"]
[BlackElo "2590"]
[TimeControl "180+1"]
[EndTime "8:27:50 PDT"]
[Termination "subham777 won on time"]

1. e4 {[%clk 0:02:23.2]} 1... e6 {[%clk 0:02:58.5]} 2. d4 {[%clk 0:02:23.1]}
2... d5 {[%clk 0:02:58.7]} 3. Nc3 {[%clk 0:02:20.9]} 3... Nf6 {[%clk 0:02:58.2]}
4. e5 {[%clk 0:02:18.8]} 4... Nfd7 {[%clk 0:02:58.4]} 5. f4 {[%clk 0:02:19.7]}
5... c5 {[%clk 0:02:58.2]} 6. Nf3 {[%clk 0:02:20.6]} 6... Nc6 {[%clk 0:02:58.7]}
7. Be3 {[%clk 0:02:21]} 7... Be7 {[%clk 0:02:59.1]} 8. Qd2 {[%clk 0:02:20.9]}
8... a6 {[%clk 0:02:59.7]} 9. dxc5 {[%clk 0:02:21.1]} 9... Bxc5 {[%clk
0:02:59.5]} 10. Bxc5 {[%clk 0:02:19.1]} 10... Nxc5 {[%clk 0:02:58.9]} 11. Qf2
{[%clk 0:02:19.7]} 11... Qb6 {[%clk 0:02:57.8]} 12. O-O-O {[%clk 0:02:19.4]}
12... Qa5 {[%clk 0:02:52.4]} 13. Kb1 {[%clk 0:02:12.5]} 13... O-O {[%clk
0:02:48.5]} 14. h4 {[%clk 0:02:10.3]} 14... Bd7 {[%clk 0:02:42.7]} 15. h5 {[%clk
0:02:07.7]} 15... Rfc8 {[%clk 0:02:33.5]} 16. h6 {[%clk 0:02:06.2]} 16... g6
{[%clk 0:02:31.7]} 17. Qh4 {[%clk 0:01:57.3]} 17... Qd8 {[%clk 0:02:28.8]} 18.
Qxd8+ {[%clk 0:01:55.6]} 18... Rxd8 {[%clk 0:02:26.9]} 19. Bd3 {[%clk
0:01:55.9]} 19... b5 {[%clk 0:02:26.2]} 20. Ne2 {[%clk 0:01:55.8]} 20... b4
{[%clk 0:02:22.5]} 21. Ned4 {[%clk 0:01:55.7]} 21... Nxd4 {[%clk 0:02:22.1]} 22.
Nxd4 {[%clk 0:01:55.7]} 22... a5 {[%clk 0:02:18.7]} 23. g4 {[%clk 0:01:55.2]}
23... Kf8 {[%clk 0:02:13.2]} 24. Rhf1 {[%clk 0:01:51.4]} 24... Rac8 {[%clk
0:02:05.4]} 25. f5 {[%clk 0:01:47.7]} 25... Nxd3 {[%clk 0:02:03]} 26. cxd3
{[%clk 0:01:47.6]} 26... exf5 {[%clk 0:02:02.7]} 27. gxf5 {[%clk 0:01:47.7]}
27... Bxf5 {[%clk 0:01:58.7]} 28. Nxf5 {[%clk 0:01:44.4]} 28... gxf5 {[%clk
0:01:58.9]} 29. Rxf5 {[%clk 0:01:45.3]} 29... Re8 {[%clk 0:01:55.4]} 30. Rdf1
{[%clk 0:01:42.9]} 30... Rc7 {[%clk 0:01:53.7]} 31. e6 {[%clk 0:01:32.8]} 31...
Rxe6 {[%clk 0:01:51.2]} 32. Rxd5 {[%clk 0:01:33.1]} 32... Rxh6 {[%clk
0:01:48.2]} 33. Rxa5 {[%clk 0:01:32.6]} 33... Rd6 {[%clk 0:01:42.7]} 34. Rb5
{[%clk 0:01:31.3]} 34... Rd4 {[%clk 0:01:40]} 35. Rh1 {[%clk 0:01:25.5]} 35...
f6 {[%clk 0:01:29.4]} 36. Rbh5 {[%clk 0:01:02.7]} 36... Kg8 {[%clk 0:01:10]} 37.
Rg1+ {[%clk 0:01:00.5]} 37... Rg7 {[%clk 0:01:08.8]} 38. Rf1 {[%clk 0:00:57.1]}
38... Rxd3 {[%clk 0:01:04.4]} 39. Rxf6 {[%clk 0:00:51.6]} 39... Rd2 {[%clk
0:01:03.3]} 40. Rc6 {[%clk 0:00:14.3]} 40... Rgg2 {[%clk 0:00:56.6]} 41. Rc8+
{[%clk 0:00:13.1]} 41... Kg7 {[%clk 0:00:55.8]} 42. Rc7+ {[%clk 0:00:12.2]}
42... Kg6 {[%clk 0:00:55.6]} 43. Rhxh7 {[%clk 0:00:01.7]} 43... Rd1+ {[%clk
0:00:54.9]} 0-1

[Event "Early-Titled-Tuesday-Blitz-September-26-2023"]
[Site "Chess.com"]
[Date "2023.09.26"]
[Round "3"]
[White "seopie"]
[Black "LoaySameer"]
[Result "1-0"]
[WhiteElo "2837"]
[BlackElo "2606"]
[TimeControl "180+1"]
[EndTime "8:27:52 PDT"]
[Termination "seopie won by resignation"]

1. d4 {[%clk 0:03:00.9]} 1... Nf6 {[%clk 0:02:56.2]} 2. c4 {[%clk 0:03:00.9]}
2... g6 {[%clk 0:02:55.8]} 3. Nc3 {[%clk 0:03:00.8]} 3... Bg7 {[%clk 0:02:55.9]}
4. e4 {[%clk 0:03:00.7]} 4... d6 {[%clk 0:02:56.4]} 5. h3 {[%clk 0:03:00.2]}
5... O-O {[%clk 0:02:56.6]} 6. Be3 {[%clk 0:02:59.8]} 6... c5 {[%clk 0:02:52.1]}
7. Nf3 {[%clk 0:02:55.1]} 7... Nc6 {[%clk 0:02:49.2]} 8. d5 {[%clk 0:02:53.8]}
8... Na5 {[%clk 0:02:42.4]} 9. Be2 {[%clk 0:02:48.6]} 9... a6 {[%clk 0:02:36.3]}
10. O-O {[%clk 0:02:48.1]} 10... Rb8 {[%clk 0:02:36.6]} 11. Nd2 {[%clk
0:02:43.2]} 11... e5 {[%clk 0:02:26.4]} 12. a3 {[%clk 0:02:37.9]} 12... b5
{[%clk 0:02:16.2]} 13. cxb5 {[%clk 0:02:36.4]} 13... axb5 {[%clk 0:02:16.5]} 14.
Bxb5 {[%clk 0:02:35.5]} 14... Bd7 {[%clk 0:02:07.5]} 15. a4 {[%clk 0:02:29]}
15... Ne8 {[%clk 0:02:05.5]} 16. Nb3 {[%clk 0:02:14.8]} 16... Nxb3 {[%clk
0:01:58.8]} 17. Qxb3 {[%clk 0:02:14.5]} 17... Nc7 {[%clk 0:01:54.2]} 18. Qc4
{[%clk 0:02:13.7]} 18... f5 {[%clk 0:01:52.6]} 19. exf5 {[%clk 0:02:11.9]} 19...
gxf5 {[%clk 0:01:51.6]} 20. f4 {[%clk 0:02:10.6]} 20... e4 {[%clk 0:01:47.6]}
21. Rab1 {[%clk 0:02:00.8]} 21... Nxb5 {[%clk 0:01:44.3]} 22. Nxb5 {[%clk
0:01:58.2]} 22... Bxb5 {[%clk 0:00:47.6]} 23. axb5 {[%clk 0:01:57.6]} 23... Qh4
{[%clk 0:00:47.8]} 24. b4 {[%clk 0:01:50]} 24... Qg3 {[%clk 0:00:39.2]} 25. Rb3
{[%clk 0:01:38.1]} 25... cxb4 {[%clk 0:00:18.2]} 26. Qxb4 {[%clk 0:01:37.9]}
26... Qg6 {[%clk 0:00:17.4]} 27. b6 {[%clk 0:01:35.3]} 27... Rb7 {[%clk
0:00:17.2]} 28. Qc4 {[%clk 0:01:33.3]} 28... Bf6 {[%clk 0:00:16.9]} 29. Qc6
{[%clk 0:01:31.8]} 29... Rg7 {[%clk 0:00:16.8]} 30. Qc2 {[%clk 0:01:10.6]} 30...
Qh5 {[%clk 0:00:13.8]} 31. b7 {[%clk 0:01:03.7]} 31... Qxh3 {[%clk 0:00:13.9]}
32. b8=Q {[%clk 0:01:00.2]} 32... Qxe3+ {[%clk 0:00:07.2]} 33. Rxe3 {[%clk
0:00:59.8]} 33... Rxb8 {[%clk 0:00:08.1]} 34. Rb3 {[%clk 0:00:57.7]} 34... Bd4+
{[%clk 0:00:07.5]} 35. Kh2 {[%clk 0:00:58.1]} 35... Rf8 {[%clk 0:00:08.4]} 36.
Rfb1 {[%clk 0:00:53.5]} 36... Rg6 {[%clk 0:00:05.3]} 37. g3 {[%clk 0:00:50]}
37... Rh6+ {[%clk 0:00:03.7]} 38. Kg2 {[%clk 0:00:50.1]} 38... Kg7 {[%clk
0:00:04.2]} 39. Rb8 {[%clk 0:00:46]} 39... Rff6 {[%clk 0:00:03.8]} 40. R1b7+
{[%clk 0:00:44.8]} 40... Kg6 {[%clk 0:00:03.7]} 41. Rg8+ {[%clk 0:00:44]} 1-0

[Event "Early-Titled-Tuesday-Blitz-September-26-2023"]
[Site "Chess.com"]
[Date "2023.09.26"]
[Round "3"]
[White "Flopezin"]
[Black "guillembaches"]
[Result "0-1"]
[WhiteElo "2315"]
[BlackElo "2513"]
[TimeControl "180+1"]
[EndTime "8:27:53 PDT"]
[Termination "guillembaches won by checkmate"]

1. e4 {[%clk 0:03:00.9]} 1... d5 {[%clk 0:03:00.3]} 2. exd5 {[%clk 0:03:00.1]}
2... Qxd5 {[%clk 0:03:01.2]} 3. Nc3 {[%clk 0:03:00.2]} 3... Qa5 {[%clk
0:03:01.8]} 4. Bc4 {[%clk 0:02:57.4]} 4... Nf6 {[%clk 0:03:01.4]} 5. d3 {[%clk
0:02:55.8]} 5... a6 {[%clk 0:02:59.2]} 6. Bd2 {[%clk 0:02:53.9]} 6... Qe5+
{[%clk 0:02:51.2]} 7. Nge2 {[%clk 0:02:48]} 7... b5 {[%clk 0:02:49.6]} 8. Bf4
{[%clk 0:02:41.2]} 8... Qc5 {[%clk 0:02:35.2]} 9. Bb3 {[%clk 0:02:23.7]} 9...
Bb7 {[%clk 0:02:34.5]} 10. O-O {[%clk 0:02:17.2]} 10... e5 {[%clk 0:02:28.8]}
11. d4 {[%clk 0:02:12.9]} 11... Qc6 {[%clk 0:02:23]} 12. d5 {[%clk 0:01:58]}
12... Qd6 {[%clk 0:02:22.7]} 13. Bg3 {[%clk 0:01:52]} 13... Nbd7 {[%clk
0:02:16.7]} 14. f4 {[%clk 0:01:38.7]} 14... e4 {[%clk 0:02:06.3]} 15. f5 {[%clk
0:01:32.4]} 15... Qb6+ {[%clk 0:02:03.4]} 16. Kh1 {[%clk 0:01:30.3]} 16... Bd6
{[%clk 0:01:50.7]} 17. Re1 {[%clk 0:01:18.4]} 17... O-O {[%clk 0:01:31]} 18.
Bxd6 {[%clk 0:01:10.4]} 18... cxd6 {[%clk 0:01:29.5]} 19. Nf4 {[%clk 0:01:02.9]}
19... Rfe8 {[%clk 0:01:25]} 20. a4 {[%clk 0:00:58]} 20... b4 {[%clk 0:01:22.5]}
21. Nce2 {[%clk 0:00:49.7]} 21... Nc5 {[%clk 0:01:14.3]} 22. Qd4 {[%clk
0:00:42.8]} 22... Qc7 {[%clk 0:01:05.8]} 23. Qxb4 {[%clk 0:00:35.7]} 23... e3
{[%clk 0:00:58.3]} 24. Qd4 {[%clk 0:00:27.6]} 24... Re4 {[%clk 0:00:53.4]} 25.
Qd1 {[%clk 0:00:25.8]} 25... Nxb3 {[%clk 0:00:51.5]} 26. cxb3 {[%clk 0:00:26.7]}
26... Rae8 {[%clk 0:00:50.2]} 27. Rc1 {[%clk 0:00:24.6]} 27... Qb6 {[%clk
0:00:49.6]} 28. Nd3 {[%clk 0:00:21.9]} 28... Bxd5 {[%clk 0:00:44.4]} 29. Ng3
{[%clk 0:00:20]} 29... Rg4 {[%clk 0:00:36.8]} 30. b4 {[%clk 0:00:18.1]} 30...
Qb7 {[%clk 0:00:33.3]} 31. Qe2 {[%clk 0:00:17.8]} 31... h5 {[%clk 0:00:32.9]}
32. Nxh5 {[%clk 0:00:16.4]} 32... Rxg2 {[%clk 0:00:29.8]} 33. Qxg2 {[%clk
0:00:13.8]} 33... Bxg2+ {[%clk 0:00:29.3]} 34. Kg1 {[%clk 0:00:14.7]} 34... Nxh5
{[%clk 0:00:29]} 35. Re2 {[%clk 0:00:14.6]} 35... Nf4 {[%clk 0:00:28.9]} 36.
Nxf4 {[%clk 0:00:14.7]} 36... Bf3 {[%clk 0:00:28.9]} 37. Ree1 {[%clk 0:00:13.7]}
37... Qe4 {[%clk 0:00:28.3]} 38. Nh3 {[%clk 0:00:12.3]} 38... Qg4+ {[%clk
0:00:27.8]} 39. Kf1 {[%clk 0:00:11.9]} 39... Qg2# {[%clk 0:00:27.5]} 0-1

[Event "Early-Titled-Tuesday-Blitz-September-26-2023"]
[Site "Chess.com"]
[Date "2023.09.26"]
[Round "3"]
[White "bennyficial"]
[Black "m_ezat"]
[Result "0-1"]
[WhiteElo "2143"]
[BlackElo "2539"]
[TimeControl "180+1"]
[EndTime "8:27:55 PDT"]
[Termination "m_ezat won by resignation"]

1. Nf3 {[%clk 0:03:00.9]} 1... Nf6 {[%clk 0:02:59.2]} 2. c4 {[%clk 0:03:00.8]}
2... g6 {[%clk 0:02:57.9]} 3. b3 {[%clk 0:03:00.8]} 3... Bg7 {[%clk 0:02:57.5]}
4. Bb2 {[%clk 0:03:01.5]} 4... O-O {[%clk 0:02:57.3]} 5. g3 {[%clk 0:03:02.2]}
5... c5 {[%clk 0:02:56.5]} 6. Bg2 {[%clk 0:03:02.3]} 6... Nc6 {[%clk 0:02:56.1]}
7. O-O {[%clk 0:03:02.2]} 7... d5 {[%clk 0:02:50.7]} 8. cxd5 {[%clk 0:03:00.8]}
8... Qxd5 {[%clk 0:02:50.3]} 9. Nc3 {[%clk 0:02:59.6]} 9... Qh5 {[%clk
0:02:48.9]} 10. Rc1 {[%clk 0:02:52]} 10... Bh3 {[%clk 0:02:37.5]} 11. d3 {[%clk
0:02:40.5]} 11... b6 {[%clk 0:02:23.8]} 12. Re1 {[%clk 0:02:16.8]} 12... Ng4
{[%clk 0:02:19.5]} 13. Bh1 {[%clk 0:02:11.4]} 13... Rad8 {[%clk 0:02:09.4]} 14.
Na4 {[%clk 0:01:50.4]} 14... e5 {[%clk 0:01:58.1]} 15. e3 {[%clk 0:01:28.9]}
15... e4 {[%clk 0:01:45]} 16. Bxg7 {[%clk 0:01:06.7]} 16... exf3 {[%clk
0:01:20.5]} 17. Qxf3 {[%clk 0:00:57.2]} 17... Kxg7 {[%clk 0:01:18.2]} 18. Qxc6
{[%clk 0:00:54.3]} 18... Rxd3 {[%clk 0:01:11.5]} 19. Rc2 {[%clk 0:00:32.5]}
19... Nxh2 {[%clk 0:00:51.2]} 20. Kxh2 {[%clk 0:00:21.7]} 20... Bd7+ {[%clk
0:00:48.5]} 21. Kg1 {[%clk 0:00:17]} 21... Bxc6 {[%clk 0:00:48.7]} 22. Bxc6
{[%clk 0:00:17.9]} 22... Rfd8 {[%clk 0:00:46.5]} 23. Kg2 {[%clk 0:00:17.6]}
23... Rd1 {[%clk 0:00:45.2]} 24. Bf3 {[%clk 0:00:16.4]} 24... Qxf3+ {[%clk
0:00:35.8]} 25. Kxf3 {[%clk 0:00:17.3]} 25... Rxe1 {[%clk 0:00:36.3]} 26. a3
{[%clk 0:00:14.9]} 26... Rdd1 {[%clk 0:00:36]} 27. b4 {[%clk 0:00:14.8]} 27...
Rc1 {[%clk 0:00:33]} 28. Rb2 {[%clk 0:00:10.5]} 28... c4 {[%clk 0:00:32]} 29. b5
{[%clk 0:00:09.1]} 29... c3 {[%clk 0:00:30]} 30. Rb3 {[%clk 0:00:09.7]} 30... c2
{[%clk 0:00:30.2]} 31. Rc3 {[%clk 0:00:10]} 31... Red1 {[%clk 0:00:28.5]} 32.
Nb2 {[%clk 0:00:09.7]} 32... Rd5 {[%clk 0:00:28.3]} 33. Nd3 {[%clk 0:00:06.8]}
33... Rxd3 {[%clk 0:00:27.1]} 34. Rxd3 {[%clk 0:00:07.7]} 34... Rd1 {[%clk
0:00:27.4]} 35. Rc3 {[%clk 0:00:05.3]} 35... c1=Q {[%clk 0:00:27.1]} 0-1

[Event "Early-Titled-Tuesday-Blitz-September-26-2023"]
[Site "Chess.com"]
[Date "2023.09.26"]
[Round "3"]
[White "Fleetw00dMac"]
[Black "MokshanovAlexey"]
[Result "0-1"]
[WhiteElo "2471"]
[BlackElo "2693"]
[TimeControl "180+1"]
[EndTime "8:27:58 PDT"]
[Termination "MokshanovAlexey won by resignation"]

1. d4 {[%clk 0:03:00.9]} 1... d5 {[%clk 0:02:56]} 2. c4 {[%clk 0:03:00.5]} 2...
e6 {[%clk 0:02:54.7]} 3. Nc3 {[%clk 0:03:00]} 3... Nf6 {[%clk 0:02:54.8]} 4.
cxd5 {[%clk 0:02:59.7]} 4... exd5 {[%clk 0:02:55.1]} 5. Bg5 {[%clk 0:02:59.4]}
5... Be7 {[%clk 0:02:55]} 6. e3 {[%clk 0:02:59.3]} 6... O-O {[%clk 0:02:55.2]}
7. Bd3 {[%clk 0:02:59.1]} 7... c6 {[%clk 0:02:55.3]} 8. Nge2 {[%clk 0:02:58.7]}
8... Nbd7 {[%clk 0:02:55.1]} 9. O-O {[%clk 0:02:58.1]} 9... Re8 {[%clk
0:02:55.7]} 10. a4 {[%clk 0:02:49.1]} 10... a5 {[%clk 0:02:54.1]} 11. Kh1 {[%clk
0:02:37.8]} 11... Nf8 {[%clk 0:02:50.6]} 12. f3 {[%clk 0:02:35.5]} 12... Nh5
{[%clk 0:02:47.3]} 13. Bxe7 {[%clk 0:02:35.1]} 13... Qxe7 {[%clk 0:02:47.2]} 14.
e4 {[%clk 0:02:35]} 14... dxe4 {[%clk 0:02:44.2]} 15. fxe4 {[%clk 0:02:34.5]}
15... Bg4 {[%clk 0:02:39.1]} 16. Qd2 {[%clk 0:02:18.7]} 16... Ne6 {[%clk
0:02:26.4]} 17. Qe3 {[%clk 0:01:55.3]} 17... Qh4 {[%clk 0:02:22]} 18. Rae1
{[%clk 0:01:43.8]} 18... Rad8 {[%clk 0:02:17.5]} 19. Bc4 {[%clk 0:01:40.5]}
19... Re7 {[%clk 0:02:04.2]} 20. e5 {[%clk 0:01:38.7]} 20... Bxe2 {[%clk
0:02:02.5]} 21. Nxe2 {[%clk 0:01:34.3]} 21... Nxd4 {[%clk 0:01:58.5]} 22. Nf4
{[%clk 0:01:26.3]} 22... Nf5 {[%clk 0:01:50.8]} 23. Qh3 {[%clk 0:01:21.5]} 23...
Nxf4 {[%clk 0:01:40.5]} 24. Qxh4 {[%clk 0:01:21.2]} 24... Nxh4 {[%clk
0:01:40.6]} 25. Rxf4 {[%clk 0:01:21.2]} 25... Ng6 {[%clk 0:01:39.8]} 26. Rf5
{[%clk 0:01:20.9]} 26... Nxe5 {[%clk 0:01:30]} 27. h3 {[%clk 0:00:59.8]} 27...
Rde8 {[%clk 0:01:23.5]} 28. Bb3 {[%clk 0:00:52.6]} 28... Kh8 {[%clk 0:01:13.1]}
29. Rd1 {[%clk 0:00:46.5]} 29... f6 {[%clk 0:01:11.9]} 30. Rf4 {[%clk
0:00:42.9]} 30... Rd7 {[%clk 0:01:06.8]} 31. Rxd7 {[%clk 0:00:41.9]} 31... Nxd7
{[%clk 0:01:06.8]} 32. Rd4 {[%clk 0:00:41.1]} 32... Re7 {[%clk 0:01:04.7]} 33.
Kh2 {[%clk 0:00:39.2]} 33... g6 {[%clk 0:01:03.8]} 34. Bd1 {[%clk 0:00:38.2]}
34... Kg7 {[%clk 0:01:03.2]} 35. b4 {[%clk 0:00:37.8]} 35... axb4 {[%clk
0:01:01.6]} 36. Rxb4 {[%clk 0:00:37.7]} 36... Nc5 {[%clk 0:01:00.8]} 37. a5
{[%clk 0:00:37.1]} 37... f5 {[%clk 0:00:57.5]} 38. Bf3 {[%clk 0:00:37]} 38...
Kf6 {[%clk 0:00:56.5]} 39. h4 {[%clk 0:00:35]} 39... Ke5 {[%clk 0:00:54.8]} 40.
Rc4 {[%clk 0:00:34.9]} 40... Kd6 {[%clk 0:00:54.8]} 41. Rd4+ {[%clk 0:00:34.1]}
41... Kc7 {[%clk 0:00:53.9]} 42. Rc4 {[%clk 0:00:34.3]} 42... Ne4 {[%clk
0:00:45.3]} 43. Rb4 {[%clk 0:00:32.9]} 43... Re5 {[%clk 0:00:44.2]} 44. Ra4
{[%clk 0:00:30.2]} 44... Nd2 {[%clk 0:00:38.3]} 45. Bd1 {[%clk 0:00:27.8]} 45...
Re1 {[%clk 0:00:33.8]} 46. Bc2 {[%clk 0:00:27.6]} 46... Nf1+ {[%clk 0:00:33.5]}
0-1